Workbook

Sheet паспорт
A1: ПАТ "УКРТРАНСГАЗ" | G1: ПАСПОРТ ФІЗИКО-ХІМІЧНИХ ПОКАЗНИКІВ ПРИРОДНОГО ГАЗУ № 202
A2: Філія "УМГ "ЛЬВІВТРАНСГАЗ" | G2: переданого Опарським ВУ ПЗГ та прийнятого Дрогобицьким відділенням ПАТ "Львівгаз"
A3: Опарське ВУ ПЗГ | G3: Маршрут №202
A4: Вимірювальна хіміко-аналітична лабораторія
A5: Свідоцтво №РЛ 153/15 чинно до 14.12.2020 р. | K5: по газопроводу "Іваники-Пукеничі" | V5: за період з | X5: 2017-02-01 | Z5: по | AA5: 2017-02-28
A7: Число місяця | B7: Компонентний склад, % мол. | N7: Фізико-хімічні показники газу обчислені на основі компонентного складу, 101,325 кПа | X7: Температура точки роси вологи (Р = 3.92 МПа), ºС | Y7: Температура точки роси вуглеводнів, ºС | Z7: Вміст сірководню, г/м3 | AA7: Вміст меркаптанової сірки, г/м3 | AB7: Вміст механічних домішок, г/м3
N8: Густина абсолютна, кг/м3,при 20 ºС, | O8: Температура вимірювання/згоряння при 20/25°С
B9: метан, С1 | C9: етан, С2 | D9: пропан, С3 | E9: ізо-бутан, і-С4 | F9: н-бутан, н-С4 | G9: нео-пентан, нео-С5 | H9: ізо-пентан, і-С5 | I9: н-пентан, н-С5 | J9: гексани та вищі, С6+ | K9: кисень, О2 | L9: азот, N2 | M9: діоксид вуглецю, CО2 | O9: Теплота згоряння нижча | R9: Теплота згоряння вища | U9: Число Воббе вище
O10: ккал/м3 | P10: МДж/м3 | Q10: кВт⋅год/м3 | R10: ккал/м3 | S10: МДж/м3 | T10: кВт⋅год/м3 | U10: ккал/м3 | V10: МДж/м3 | W10: кВт⋅год/м3
A11: 1 | O11: =P11*238.8459 -> 8249.737386 | P11: 34.54 | Q11: =P11/3.6 -> 9.594444444 | R11: 9143 | S11: 38.28 | T11: =S11/3.6 -> 10.63333333 | AC11: =SUM(B11:M11)+$K$42+$N$42 -> 0
A12: 2 | O12: =P12*238.8459 -> 8249.737386 | P12: 34.54 | Q12: =P12/3.6 -> 9.594444444 | R12: 9143 | S12: 38.28 | T12: =S12/3.6 -> 10.63333333 | AC12: 0
A13: 3 | O13: 8249.737386 | P13: 34.54 | Q13: 9.594444444 | R13: 9143 | S13: 38.28 | T13: =S13/3.6 -> 10.63333333 | AC13: 0 | AD13: =IF(AC13=100,"ОК"," ") -> 
A14: 4 | O14: 8249.737386 | P14: 34.54 | Q14: 9.594444444 | R14: 9143 | S14: 38.28 | T14: 10.63333333 | AC14: 0 | AD14: =IF(AC14=100,"ОК"," ") -> 
A15: 5 | O15: 8249.737386 | P15: 34.54 | Q15: 9.594444444 | R15: 9143 | S15: 38.28 | T15: 10.63333333 | AC15: 0
A16: 6 | B16: 95.1781 | C16: 2.7224 | D16: 0.8274 | E16: 0.131 | F16: 0.137 | G16: 0.001 | H16: 0.0331 | I16: 0.0212 | J16: 0.0008 | K16: 0.0075 | L16: 0.7174 | M16: 0.2231 | N16: 0.7061 | O16: 8244.960468 | P16: 34.52 | Q16: 9.588888889 | R16: 9136 | S16: 38.26 | T16: 10.62777778 | U16: 11932 | V16: 49.96 | W16: 13.88 | Z16: 0 | AC16: 100 | AD16: ОК
A17: 7 | O17: 8244.960468 | P17: 34.52 | Q17: =P17/3.6 -> 9.588888889 | R17: 9136 | S17: 38.26 | T17: =S17/3.6 -> 10.62777778 | AC17: 0
A18: 8 | O18: 8244.960468 | P18: 34.52 | Q18: 9.588888889 | R18: 9136 | S18: 38.26 | T18: 10.62777778 | AC18: 0
A19: 9 | O19: 8244.960468 | P19: 34.52 | Q19: 9.588888889 | R19: 9136 | S19: 38.26 | T19: 10.62777778 | AC19: 0
A20: 10 | O20: 8244.960468 | P20: 34.52 | Q20: 9.588888889 | R20: 9136 | S20: 38.26 | T20: 10.62777778 | AC20: 0
A21: 11 | O21: 8244.960468 | P21: 34.52 | Q21: 9.588888889 | R21: 9136 | S21: 38.26 | T21: 10.62777778 | AC21: 0
A22: 12 | O22: 8244.960468 | P22: 34.52 | Q22: 9.588888889 | R22: 9136 | S22: 38.26 | T22: 10.62777778 | AC22: 0
A23: 13 | B23: 94.4994 | C23: 2.9645 | D23: 0.852 | E23: 0.1238 | F23: 0.1399 | G23: 0.002 | H23: 0.0336 | I23: 0.0238 | J23: 0.0021 | K23: 0.0067 | L23: 0.8724 | M23: 0.4798 | N23: 0.7117 | O23: 8230.629714 | P23: 34.46 | Q23: =P23/3.6 -> 9.572222222 | R23: 9120 | S23: 38.18 | T23: =S23/3.6 -> 10.60555556 | U23: 11865 | V23: 49.67 | W23: 13.8 | AC23: 100 | AD23: ОК
A24: 14 | O24: 8230.629714 | P24: 34.46 | Q24: =P24/3.6 -> 9.572222222 | R24: 9120 | S24: 38.18 | T24: =S24/3.6 -> 10.60555556 | AC24: 0
A25: 15 | O25: 8230.629714 | P25: 34.46 | Q25: 9.572222222 | R25: 9120 | S25: 38.18 | T25: 10.60555556 | AB25: 0 | AC25: 0
A26: 16 | O26: 8230.629714 | P26: 34.46 | Q26: 9.572222222 | R26: 9120 | S26: 38.18 | T26: 10.60555556 | AC26: 0
A27: 17 | O27: 8230.629714 | P27: 34.46 | Q27: 9.572222222 | R27: 9120 | S27: 38.18 | T27: 10.60555556 | AC27: 0
A28: 18 | O28: 8230.629714 | P28: 34.46 | Q28: 9.572222222 | R28: 9120 | S28: 38.18 | T28: 10.60555556 | AC28: 0
A29: 19 | O29: 8230.629714 | P29: 34.46 | Q29: 9.572222222 | R29: 9120 | S29: 38.18 | T29: 10.60555556 | AC29: 0
A30: 20 | B30: 94.5247 | C30: 2.9395 | D30: 0.8361 | E30: 0.1214 | F30: 0.1375 | G30: 0.0014 | H30: 0.0319 | I30: 0.023 | J30: 0.0019 | K30: 0.0077 | L30: 0.887 | M30: 0.4879 | N30: 0.7114 | O30: 8221.075878 | P30: 34.42 | Q30: =P30/3.6 -> 9.561111111 | R30: 9112 | S30: 38.15 | T30: =S30/3.6 -> 10.59722222 | U30: 11857 | V30: 49.64 | W30: 13.79 | AC30: 100 | AD30: =IF(AC30=100,"ОК"," ") -> ОК
A31: 21 | O31: 8221.075878 | P31: 34.42 | Q31: =P31/3.6 -> 9.561111111 | R31: 9112 | S31: 38.15 | T31: =S31/3.6 -> 10.59722222 | AC31: 0
A32: 22 | O32: 8221.075878 | P32: 34.42 | Q32: 9.561111111 | R32: 9112 | S32: 38.15 | T32: 10.59722222 | AC32: 0
A33: 23 | O33: 8221.075878 | P33: 34.42 | Q33: 9.561111111 | R33: 9112 | S33: 38.15 | T33: 10.59722222 | AC33: 0 | AD33: =IF(AC33=100,"ОК"," ") -> 
A34: 24 | O34: 8221.075878 | P34: 34.42 | Q34: 9.561111111 | R34: 9112 | S34: 38.15 | T34: 10.59722222 | AC34: 0
A35: 25 | O35: 8221.075878 | P35: 34.42 | Q35: 9.561111111 | R35: 9112 | S35: 38.15 | T35: 10.59722222 | AC35: 0
A36: 26 | O36: 8221.075878 | P36: 34.42 | Q36: 9.561111111 | R36: 9112 | S36: 38.15 | T36: 10.59722222 | AC36: 0
A37: 27 | B37: 91.7991 | C37: 4.0842 | D37: 1.0291 | E37: 0.1208 | F37: 0.1741 | G37: 0.0014 | H37: 0.0444 | I37: 0.0342 | J37: 0.0031 | K37: 0.0071 | L37: 1.3696 | M37: 1.3329 | N37: 0.7338 | O37: 8225.852796 | P37: 34.44 | Q37: =P37/3.6 -> 9.566666667 | R37: 9111 | S37: 38.15 | T37: =S37/3.6 -> 10.59722222 | U37: 11673 | V37: 48.87 | W37: 13.56 | AC37: 100 | AD37: ОК
A38: 28 | O38: 8225.852796 | P38: 34.44 | Q38: =P38/3.6 -> 9.566666667 | R38: 9111 | S38: 38.15 | T38: =S38/3.6 -> 10.59722222 | AC38: 0
A39: 29 | O39: 0 | Q39: 0 | T39: 0 | AC39: 0
A40: 30 | O40: 0 | Q40: 0 | T40: 0 | AC40: 0
A41: 31 | O41: 0 | Q41: 0 | T41: 0 | AC41: 0
A42: Рівень одоризації відповідає чинним нормативним документам | O42: 8236.266062 | P42: 34.48359826 | Q42: 9.578777295 | R42: 9126.968344 | S42: 38.21495107 | T42: 10.61526419
H43: Середньозважене значення теплоти згоряння:
B46: Начальник управління Опарського ВУПЗГ Біляк І.Б.
C47: Підрозділу підприємства, якому підпорядкована лабораторія | O47: прізвище | R47: підпис | V47: дата
B48: Технік-лаборант ІІ кат Гнатків О.Б.
C49: Лабораторія, де здійснювалось вимірювання газу | O49: прізвище | R49: підпис | V49: дата
B50: Інженер з метрології ІІ кат Кушнір В.О.
C51: Підрозділу, відповідального за облік газу за маршрутом | O51: прізвище | R51: підпис | V51: дата

Sheet додаток
A2: Додаток до Паспорту фізико-хімічних показників природного газу №202
A4: Область | B4: ГРС, прямий споживач | C4: Cередньозважене значення вищої теплоти згоряння
C5: МДж/м³ | D5: ккал/м³ | E5: кВт*год./м³
A6: Львівська область | B6: ГРС Трускавець | C6: 38.21512278 | D6: 9127.525393 | E6: 10.61
B7: ГРС Уличне | C7: 38.21392735 | D7: 9127.23987 | E7: 10.61497982
A8: Середньозважене значення вищої теплоти згоряння по маршруту №202 | C8: 38.21495107 | D8: 9127.484381 | E8: 10.61526419
A12: Начальник управління Опарського ВУ ПЗГ | D12: Біляк І.Б.
A13: Підрозділу підприємства, якому підпорядкована лабораторія | D13: прізвище | E13: підпис | F13: дата
A14: Технік-лаборант ІІ кат | D14: Гнатків О.Б.
A15: Лабораторія, де здійснювалось вимірювання газу | D15: прізвище | E15: підпис | F15: дата
A16: Інженер з метрології ІІ кат | D16: Кушнір В.О.
A17: Підрозділу, відповідального за облік газу за маршрутом | D17: прізвище | E17: підпис | F17: дата

Sheet variablesList (hidden)
A1: 3 | B1: x:\gaysin | C1: 10, 11, 24, 25, 127, 128, 132, 180, 207, 215 | D1: x:\
B2: x:\Illinci
B3: x:\Talne
